[Event "*** SCC Grand Prix: Titled Tuesday Blitz"]
[Site "Chess.com"]
[Date "2020.07.07"]
[Round "5"]
[White "ElviraBerend"]
[Black "queen_iryna"]
[Result "1-0"]
[WhiteElo "2431"]
[BlackElo "2253"]
[TimeControl "180+1"]
[EndTime "10:53:45 PDT"]
[Termination "ElviraBerend won by resignation"]

1. d4 {[%clk 0:03:00.9]} 1... d5 {[%clk 0:02:58]} 2. c4 {[%clk 0:03:00.7]} 2...
c6 {[%clk 0:02:58.5]} 3. Nf3 {[%clk 0:03:00.1]} 3... Nf6 {[%clk 0:02:58.4]} 4.
e3 {[%clk 0:03:00.3]} 4... Bf5 {[%clk 0:02:57.1]} 5. Bd3 {[%clk 0:02:57.5]} 5...
Bg6 {[%clk 0:02:49.9]} 6. O-O {[%clk 0:02:56]} 6... e6 {[%clk 0:02:49.9]} 7. Nc3
{[%clk 0:02:55.9]} 7... Nbd7 {[%clk 0:02:47.7]} 8. b3 {[%clk 0:02:54.9]} 8...
Bb4 {[%clk 0:02:38.9]} 9. Bb2 {[%clk 0:02:54.5]} 9... Bxc3 {[%clk 0:02:34.9]}
10. Bxc3 {[%clk 0:02:53.7]} 10... Bxd3 {[%clk 0:02:35]} 11. Qxd3 {[%clk
0:02:52.9]} 11... O-O {[%clk 0:02:35.2]} 12. Rfd1 {[%clk 0:02:51]} 12... Ne4
{[%clk 0:02:34.1]} 13. Bb2 {[%clk 0:02:49.4]} 13... Qf6 {[%clk 0:02:27.4]} 14.
b4 {[%clk 0:02:42.2]} 14... Rfd8 {[%clk 0:01:58.3]} 15. Qe2 {[%clk 0:02:33.6]}
15... Nb6 {[%clk 0:01:52.3]} 16. c5 {[%clk 0:02:22.2]} 16... Nc4 {[%clk
0:01:49.8]} 17. a4 {[%clk 0:02:12.2]} 17... a5 {[%clk 0:01:40.7]} 18. b5 {[%clk
0:02:10.9]} 18... Nxb2 {[%clk 0:01:35.6]} 19. Qxb2 {[%clk 0:02:10]} 19... Nxc5
{[%clk 0:01:35.5]} 20. Ne5 {[%clk 0:02:01.5]} 20... Ne4 {[%clk 0:01:21]} 21.
bxc6 {[%clk 0:01:57.4]} 21... bxc6 {[%clk 0:01:21.9]} 22. Nxc6 {[%clk
0:01:55.8]} 22... Rdc8 {[%clk 0:01:22]} 23. Rdc1 {[%clk 0:01:54.4]} 23... h6
{[%clk 0:01:18.7]} 24. h3 {[%clk 0:01:43.9]} 24... Nd6 {[%clk 0:01:18]} 25. Ne5
{[%clk 0:01:38.8]} 25... Ne4 {[%clk 0:01:10.8]} 26. Nd7 {[%clk 0:01:30.7]} 26...
Qg6 {[%clk 0:01:08.4]} 27. Rxc8+ {[%clk 0:01:06.7]} 27... Rxc8 {[%clk
0:01:09.3]} 28. Rc1 {[%clk 0:01:05.6]} 28... Rxc1+ {[%clk 0:01:04.5]} 29. Qxc1
{[%clk 0:01:04.9]} 29... Ng5 {[%clk 0:01:04.2]} 30. Qc8+ {[%clk 0:01:02.7]} 1-0

[Event "*** SCC Grand Prix: Titled Tuesday Blitz"]
[Site "Chess.com"]
[Date "2020.07.07"]
[Round "5"]
[White "KobyKalavannan"]
[Black "eljanov"]
[Result "0-1"]
[WhiteElo "2634"]
[BlackElo "2878"]
[TimeControl "180+1"]
[EndTime "10:53:47 PDT"]
[Termination "eljanov won by checkmate"]

1. d4 {[%clk 0:03:00.9]} 1... Nf6 {[%clk 0:02:54.7]} 2. c4 {[%clk 0:03:00.6]}
2... e6 {[%clk 0:02:53.3]} 3. Nf3 {[%clk 0:03:01]} 3... b6 {[%clk 0:02:53.2]} 4.
g3 {[%clk 0:03:01.2]} 4... Bb7 {[%clk 0:02:53.1]} 5. Bg2 {[%clk 0:03:01.7]} 5...
Be7 {[%clk 0:02:53.5]} 6. O-O {[%clk 0:03:02.3]} 6... O-O {[%clk 0:02:54]} 7.
Nc3 {[%clk 0:03:03]} 7... Ne4 {[%clk 0:02:50.1]} 8. Qc2 {[%clk 0:03:03.4]} 8...
Nxc3 {[%clk 0:02:49.5]} 9. Qxc3 {[%clk 0:03:04.3]} 9... d6 {[%clk 0:02:48.2]}
10. Bf4 {[%clk 0:03:03.9]} 10... Nd7 {[%clk 0:02:44]} 11. Rad1 {[%clk
0:03:01.4]} 11... Be4 {[%clk 0:02:17.9]} 12. b4 {[%clk 0:02:52]} 12... f5 {[%clk
0:02:17]} 13. c5 {[%clk 0:02:51]} 13... Nf6 {[%clk 0:01:46.6]} 14. Qb3 {[%clk
0:02:34.1]} 14... Nd5 {[%clk 0:01:34.5]} 15. cxd6 {[%clk 0:02:26]} 15... cxd6
{[%clk 0:01:31.6]} 16. Bd2 {[%clk 0:02:23]} 16... Qd7 {[%clk 0:01:28.5]} 17. Rc1
{[%clk 0:02:22.1]} 17... Rac8 {[%clk 0:01:10.4]} 18. b5 {[%clk 0:02:19]} 18...
Bf6 {[%clk 0:01:02.9]} 19. e3 {[%clk 0:02:11.2]} 19... Rxc1 {[%clk 0:00:57.4]}
20. Rxc1 {[%clk 0:02:11.2]} 20... Rc8 {[%clk 0:00:58]} 21. Ne1 {[%clk
0:01:53.9]} 21... Bxg2 {[%clk 0:00:56]} 22. Kxg2 {[%clk 0:01:50.6]} 22... Kf7
{[%clk 0:00:51]} 23. Nd3 {[%clk 0:01:49.3]} 23... Qb7 {[%clk 0:00:43.5]} 24.
Rxc8 {[%clk 0:01:19.7]} 24... Nxe3+ {[%clk 0:00:39.9]} 25. Kg1 {[%clk 0:01:07]}
25... Qg2# {[%clk 0:00:39.9]} 0-1

[Event "*** SCC Grand Prix: Titled Tuesday Blitz"]
[Site "Chess.com"]
[Date "2020.07.07"]
[Round "5"]
[White "hanzo_hasashi1"]
[Black "Micki-taryan"]
[Result "1-0"]
[WhiteElo "2864"]
[BlackElo "3041"]
[TimeControl "180+1"]
[EndTime "10:53:48 PDT"]
[Termination "hanzo_hasashi1 won by resignation"]

1. d4 {[%clk 0:03:00.9]} 1... Nf6 {[%clk 0:02:59.9]} 2. c4 {[%clk 0:02:59.8]}
2... e6 {[%clk 0:03:00]} 3. Nc3 {[%clk 0:02:58.1]} 3... Bb4 {[%clk 0:03:00.3]}
4. Qc2 {[%clk 0:02:56.9]} 4... d5 {[%clk 0:02:59.4]} 5. cxd5 {[%clk 0:02:53.9]}
5... exd5 {[%clk 0:03:00.3]} 6. Bg5 {[%clk 0:02:52.7]} 6... c6 {[%clk 0:02:59]}
7. e3 {[%clk 0:02:52]} 7... Be6 {[%clk 0:02:55.5]} 8. Bd3 {[%clk 0:02:51.4]}
8... Nbd7 {[%clk 0:02:49.4]} 9. Ne2 {[%clk 0:02:48]} 9... h6 {[%clk 0:02:45.5]}
10. Bh4 {[%clk 0:02:45.7]} 10... O-O {[%clk 0:02:45.9]} 11. O-O {[%clk
0:02:41.7]} 11... Be7 {[%clk 0:02:41.6]} 12. Nf4 {[%clk 0:02:29.1]} 12... Bd6
{[%clk 0:01:58.6]} 13. Nxe6 {[%clk 0:02:25.9]} 13... fxe6 {[%clk 0:01:59.5]} 14.
e4 {[%clk 0:02:21.7]} 14... Be7 {[%clk 0:01:31.8]} 15. e5 {[%clk 0:02:17.3]}
15... Nh5 {[%clk 0:01:12.3]} 16. Bxe7 {[%clk 0:02:14.6]} 16... Qxe7 {[%clk
0:01:13.2]} 17. g3 {[%clk 0:02:12.1]} 17... g5 {[%clk 0:01:13.1]} 18. Be2 {[%clk
0:02:06.3]} 18... Ng7 {[%clk 0:01:12.9]} 19. Qg6 {[%clk 0:02:03.5]} 19... c5
{[%clk 0:01:12.3]} 20. Bd3 {[%clk 0:01:56.6]} 20... Rf5 {[%clk 0:00:51.1]} 21.
Bxf5 {[%clk 0:01:53.9]} 21... Nf8 {[%clk 0:00:50.4]} 22. Bxe6+ {[%clk
0:01:50.2]} 22... Nxe6 {[%clk 0:00:48.8]} 23. Nxd5 {[%clk 0:01:46.8]} 23... Qf7
{[%clk 0:00:32.3]} 24. Nf6+ {[%clk 0:01:41.8]} 24... Kf8 {[%clk 0:00:32]} 25.
Qxf7+ {[%clk 0:01:41.8]} 25... Kxf7 {[%clk 0:00:32.9]} 26. dxc5 {[%clk
0:01:41.9]} 26... Nxc5 {[%clk 0:00:31.3]} 27. Rac1 {[%clk 0:01:37.5]} 27... Nge6
{[%clk 0:00:31.5]} 28. Rfd1 {[%clk 0:01:36.6]} 28... a5 {[%clk 0:00:31]} 1-0

[Event "*** SCC Grand Prix: Titled Tuesday Blitz"]
[Site "Chess.com"]
[Date "2020.07.07"]
[Round "5"]
[White "Djager97"]
[Black "inegrepus"]
[Result "1-0"]
[WhiteElo "2396"]
[BlackElo "2182"]
[TimeControl "180+1"]
[EndTime "10:53:54 PDT"]
[Termination "Djager97 won by resignation"]

1. e4 {[%clk 0:03:00.9]} 1... e5 {[%clk 0:02:51]} 2. Nf3 {[%clk 0:02:59.4]} 2...
Nc6 {[%clk 0:02:50.9]} 3. d4 {[%clk 0:03:00]} 3... exd4 {[%clk 0:02:50.5]} 4.
Nxd4 {[%clk 0:03:00.9]} 4... Nf6 {[%clk 0:02:48.4]} 5. Nxc6 {[%clk 0:02:58.5]}
5... bxc6 {[%clk 0:02:49.3]} 6. e5 {[%clk 0:02:59]} 6... Qe7 {[%clk 0:02:48.3]}
7. Qe2 {[%clk 0:02:59.6]} 7... Nd5 {[%clk 0:02:38.4]} 8. c4 {[%clk 0:02:59.5]}
8... Nb6 {[%clk 0:02:38.4]} 9. b3 {[%clk 0:02:52.2]} 9... d5 {[%clk 0:02:12.3]}
10. exd6 {[%clk 0:02:37.8]} 10... Qxe2+ {[%clk 0:02:11.6]} 11. Bxe2 {[%clk
0:02:38.7]} 11... cxd6 {[%clk 0:02:12.2]} 12. Bf4 {[%clk 0:02:28.8]} 12... Be7
{[%clk 0:02:07.2]} 13. Nc3 {[%clk 0:02:22.4]} 13... O-O {[%clk 0:02:06.4]} 14.
Rd1 {[%clk 0:02:17.9]} 14... d5 {[%clk 0:01:59.3]} 15. cxd5 {[%clk 0:02:17.3]}
15... cxd5 {[%clk 0:01:59.3]} 16. O-O {[%clk 0:02:07.6]} 16... Be6 {[%clk
0:01:59]} 17. Bf3 {[%clk 0:02:00.5]} 17... Rfd8 {[%clk 0:01:58.4]} 18. Nb5
{[%clk 0:01:59.4]} 18... a6 {[%clk 0:01:43.4]} 19. Nc7 {[%clk 0:01:58.4]} 19...
Rac8 {[%clk 0:01:43.6]} 20. Rfe1 {[%clk 0:01:39.3]} 20... Bb4 {[%clk 0:01:13.2]}
21. Nxe6 {[%clk 0:01:37.6]} 21... fxe6 {[%clk 0:00:58.6]} 22. Rxe6 {[%clk
0:01:36.1]} 22... Ba5 {[%clk 0:00:49.7]} 23. b4 {[%clk 0:01:28.9]} 23... Kf7
{[%clk 0:00:48.1]} 24. bxa5 {[%clk 0:01:25.8]} 24... Kxe6 {[%clk 0:00:46.8]} 25.
axb6 {[%clk 0:01:26.7]} 25... Rc6 {[%clk 0:00:42.4]} 26. b7 {[%clk 0:01:23.1]}
26... Rb6 {[%clk 0:00:42.6]} 27. Bc7 {[%clk 0:01:18]} 1-0

[Event "*** SCC Grand Prix: Titled Tuesday Blitz"]
[Site "Chess.com"]
[Date "2020.07.07"]
[Round "5"]
[White "GianmarcoVaR"]
[Black "Atanejhad"]
[Result "1-0"]
[WhiteElo "2534"]
[BlackElo "2383"]
[TimeControl "180+1"]
[EndTime "10:53:57 PDT"]
[Termination "GianmarcoVaR won by resignation"]

1. d4 {[%clk 0:02:52.4]} 1... Nf6 {[%clk 0:02:58.1]} 2. c4 {[%clk 0:02:51.8]}
2... e6 {[%clk 0:02:58]} 3. g3 {[%clk 0:02:51.4]} 3... b6 {[%clk 0:02:52.7]} 4.
Bg2 {[%clk 0:02:48.3]} 4... c6 {[%clk 0:02:53.1]} 5. e4 {[%clk 0:02:41.6]} 5...
d5 {[%clk 0:02:53.2]} 6. e5 {[%clk 0:02:38.8]} 6... Nfd7 {[%clk 0:02:45.8]} 7.
Nd2 {[%clk 0:02:27.4]} 7... Ba6 {[%clk 0:02:44.6]} 8. Ne2 {[%clk 0:02:16]} 8...
Bb4 {[%clk 0:02:40]} 9. cxd5 {[%clk 0:02:05.9]} 9... cxd5 {[%clk 0:02:40.9]} 10.
O-O {[%clk 0:02:05.8]} 10... O-O {[%clk 0:02:39]} 11. Nf3 {[%clk 0:01:57]} 11...
Nc6 {[%clk 0:02:37.4]} 12. Nf4 {[%clk 0:01:57.4]} 12... Bxf1 {[%clk 0:02:36]}
13. Bxf1 {[%clk 0:01:56.7]} 13... Rc8 {[%clk 0:02:35.3]} 14. Bd3 {[%clk
0:01:52.2]} 14... Re8 {[%clk 0:02:27.4]} 15. h4 {[%clk 0:01:50.8]} 15... Nf8
{[%clk 0:02:26.8]} 16. Be3 {[%clk 0:01:39.3]} 16... Ne7 {[%clk 0:02:25.2]} 17.
a3 {[%clk 0:01:37.8]} 17... Bc3 {[%clk 0:02:02.3]} 18. bxc3 {[%clk 0:01:33.1]}
18... Rxc3 {[%clk 0:02:03.2]} 19. h5 {[%clk 0:01:16.8]} 19... Qc7 {[%clk
0:01:56.7]} 20. Bd2 {[%clk 0:01:16.6]} 20... Rc8 {[%clk 0:01:41.4]} 21. Bxc3
{[%clk 0:01:12]} 21... Qxc3 {[%clk 0:01:42.3]} 22. a4 {[%clk 0:01:06.8]} 22...
h6 {[%clk 0:01:37]} 23. Ne2 {[%clk 0:00:53.6]} 23... Qa5 {[%clk 0:01:32.3]} 24.
Qd2 {[%clk 0:00:51.8]} 24... Nc6 {[%clk 0:01:32]} 25. Bb5 {[%clk 0:00:41]} 25...
Nb4 {[%clk 0:01:21.4]} 26. Rb1 {[%clk 0:00:39.7]} 26... Nc2 {[%clk 0:01:21.5]}
27. Qxa5 {[%clk 0:00:38.3]} 27... bxa5 {[%clk 0:01:22.4]} 28. Rc1 {[%clk
0:00:37.5]} 1-0

[Event "*** SCC Grand Prix: Titled Tuesday Blitz"]
[Site "Chess.com"]
[Date "2020.07.07"]
[Round "5"]
[White "GracefulYear"]
[Black "quesfr"]
[Result "1-0"]
[WhiteElo "2429"]
[BlackElo "2206"]
[TimeControl "180+1"]
[EndTime "10:53:58 PDT"]
[Termination "GracefulYear won on time"]

1. d4 {[%clk 0:03:00.9]} 1... d5 {[%clk 0:02:59.3]} 2. c4 {[%clk 0:03:01.8]}
2... e6 {[%clk 0:02:57.2]} 3. Nf3 {[%clk 0:02:58.2]} 3... Nf6 {[%clk 0:02:57.5]}
4. g3 {[%clk 0:02:57.5]} 4... Be7 {[%clk 0:02:57.6]} 5. Bg2 {[%clk 0:02:57.4]}
5... O-O {[%clk 0:02:57.5]} 6. O-O {[%clk 0:02:55.4]} 6... dxc4 {[%clk
0:02:57.7]} 7. Qc2 {[%clk 0:02:55.6]} 7... b5 {[%clk 0:02:57.7]} 8. Ne5 {[%clk
0:02:46.1]} 8... Qxd4 {[%clk 0:02:55]} 9. Bxa8 {[%clk 0:02:38.9]} 9... Qxe5
{[%clk 0:02:53.3]} 10. Bg2 {[%clk 0:02:39.4]} 10... Nbd7 {[%clk 0:02:16.4]} 11.
a4 {[%clk 0:02:30.9]} 11... a6 {[%clk 0:02:13.9]} 12. axb5 {[%clk 0:02:29]}
12... axb5 {[%clk 0:02:14]} 13. Nc3 {[%clk 0:02:26.8]} 13... Nb6 {[%clk
0:01:39.4]} 14. Bf4 {[%clk 0:02:21]} 14... Qc5 {[%clk 0:01:36.8]} 15. Be3 {[%clk
0:02:20.1]} 15... Qe5 {[%clk 0:01:24.7]} 16. Bf4 {[%clk 0:02:18.6]} 16... Qc5
{[%clk 0:01:24.1]} 17. Be3 {[%clk 0:02:19.1]} 17... Qe5 {[%clk 0:01:24.2]} 18.
Rfd1 {[%clk 0:02:18.8]} 18... Bd6 {[%clk 0:00:51.2]} 19. Bd4 {[%clk 0:02:14.8]}
19... Qh5 {[%clk 0:00:46.3]} 20. Bf3 {[%clk 0:02:15.4]} 20... Ng4 {[%clk
0:00:16.8]} 21. Bxg4 {[%clk 0:02:07.9]} 21... Qxg4 {[%clk 0:00:17.7]} 22. Bxb6
{[%clk 0:02:07.9]} 22... Bb7 {[%clk 0:00:14.8]} 23. Nxb5 {[%clk 0:01:53.7]}
23... Qh3 {[%clk 0:00:13.8]} 24. e4 {[%clk 0:01:51.3]} 24... Be5 {[%clk
0:00:04.9]} 25. Bd4 {[%clk 0:01:49.9]} 25... Bxd4 {[%clk 0:00:03]} 26. Nxd4
{[%clk 0:01:48.5]} 26... f5 {[%clk 0:00:01.9]} 27. Qxc4 {[%clk 0:01:39.5]} 1-0

[Event "*** SCC Grand Prix: Titled Tuesday Blitz"]
[Site "Chess.com"]
[Date "2020.07.07"]
[Round "5"]
[White "vesalhamedinia"]
[Black "yamalchess"]
[Result "0-1"]
[WhiteElo "2215"]
[BlackElo "2454"]
[TimeControl "180+1"]
[EndTime "10:54:04 PDT"]
[Termination "yamalchess won by resignation"]

1. d4 {[%clk 0:03:00.9]} 1... f5 {[%clk 0:02:59.5]} 2. c4 {[%clk 0:02:59.9]}
2... Nf6 {[%clk 0:02:59.7]} 3. Nc3 {[%clk 0:02:59.9]} 3... g6 {[%clk 0:02:59.2]}
4. Nf3 {[%clk 0:02:59.9]} 4... Bg7 {[%clk 0:02:59.6]} 5. Bf4 {[%clk 0:02:59.9]}
5... d6 {[%clk 0:02:58.6]} 6. e3 {[%clk 0:03:00.2]} 6... b6 {[%clk 0:02:49.9]}
7. h3 {[%clk 0:02:59.7]} 7... Bb7 {[%clk 0:02:49.9]} 8. Be2 {[%clk 0:02:59.5]}
8... e6 {[%clk 0:02:50]} 9. O-O {[%clk 0:02:59.1]} 9... Qe7 {[%clk 0:02:50.1]}
10. a4 {[%clk 0:02:39.1]} 10... a5 {[%clk 0:02:46.6]} 11. Nb5 {[%clk 0:02:23.4]}
11... Na6 {[%clk 0:02:40.3]} 12. Rc1 {[%clk 0:02:13.8]} 12... Ne4 {[%clk
0:02:37.4]} 13. Qb3 {[%clk 0:01:46.3]} 13... O-O {[%clk 0:02:31.5]} 14. Rfd1
{[%clk 0:01:37.6]} 14... g5 {[%clk 0:02:23.7]} 15. Bh2 {[%clk 0:01:36.6]} 15...
g4 {[%clk 0:02:23.8]} 16. hxg4 {[%clk 0:00:40.1]} 16... fxg4 {[%clk 0:02:22.2]}
17. Nd2 {[%clk 0:00:35.4]} 17... Nxf2 {[%clk 0:02:13.9]} 18. Rf1 {[%clk
0:00:33.5]} 18... Qh4 {[%clk 0:02:12.3]} 19. e4 {[%clk 0:00:23.8]} 19... Nxe4
{[%clk 0:02:01.7]} 20. Nxe4 {[%clk 0:00:20.8]} 20... Bxe4 {[%clk 0:01:54.3]} 21.
Bg3 {[%clk 0:00:20.3]} 21... Qg5 {[%clk 0:01:52.5]} 22. Rcd1 {[%clk 0:00:15.1]}
22... Rxf1+ {[%clk 0:01:45.6]} 23. Bxf1 {[%clk 0:00:15.1]} 23... Rf8 {[%clk
0:01:40.2]} 24. Nc3 {[%clk 0:00:14.5]} 24... Qe3+ {[%clk 0:01:37.6]} 25. Kh2
{[%clk 0:00:13.4]} 25... Bxd4 {[%clk 0:01:33.3]} 26. Be2 {[%clk 0:00:12.5]}
26... Qh6+ {[%clk 0:01:32.3]} 0-1

[Event "*** SCC Grand Prix: Titled Tuesday Blitz"]
[Site "Chess.com"]
[Date "2020.07.07"]
[Round "5"]
[White "AlexSuv"]
[Black "Dyadya81"]
[Result "0-1"]
[WhiteElo "2567"]
[BlackElo "2741"]
[TimeControl "180+1"]
[EndTime "10:54:12 PDT"]
[Termination "Dyadya81 won by resignation"]

1. d4 {[%clk 0:03:00.9]} 1... Nf6 {[%clk 0:02:37.3]} 2. c4 {[%clk 0:03:00.7]}
2... g6 {[%clk 0:02:37.1]} 3. Nc3 {[%clk 0:03:00.6]} 3... Bg7 {[%clk 0:02:37.5]}
4. e4 {[%clk 0:03:00.9]} 4... d6 {[%clk 0:02:37.2]} 5. Nf3 {[%clk 0:03:01.4]}
5... O-O {[%clk 0:02:36.9]} 6. Be2 {[%clk 0:03:02]} 6... e5 {[%clk 0:02:36.8]}
7. Be3 {[%clk 0:03:02.2]} 7... exd4 {[%clk 0:02:36.2]} 8. Nxd4 {[%clk
0:03:01.9]} 8... Re8 {[%clk 0:02:36.6]} 9. f3 {[%clk 0:02:55.4]} 9... c6 {[%clk
0:02:36]} 10. Bf2 {[%clk 0:02:51]} 10... d5 {[%clk 0:02:34.2]} 11. exd5 {[%clk
0:02:50.9]} 11... cxd5 {[%clk 0:02:34.2]} 12. c5 {[%clk 0:02:51.3]} 12... Nc6
{[%clk 0:02:34.2]} 13. O-O {[%clk 0:02:50.8]} 13... Nh5 {[%clk 0:02:32.4]} 14.
Re1 {[%clk 0:02:43.5]} 14... Nf4 {[%clk 0:02:20.1]} 15. Bf1 {[%clk 0:02:40.1]}
15... Rxe1 {[%clk 0:02:16.4]} 16. Qxe1 {[%clk 0:02:22.3]} 16... Bxd4 {[%clk
0:02:05.2]} 17. Bxd4 {[%clk 0:02:21.5]} 17... Nxd4 {[%clk 0:02:06.1]} 18. Rd1
{[%clk 0:02:21.9]} 18... Nfe6 {[%clk 0:01:43.3]} 19. Qe5 {[%clk 0:02:13.6]}
19... Nc6 {[%clk 0:01:28.1]} 20. Qxd5 {[%clk 0:02:06.5]} 20... Qxd5 {[%clk
0:01:27.2]} 21. Nxd5 {[%clk 0:02:06.8]} 21... Nxc5 {[%clk 0:01:22]} 22. b4
{[%clk 0:02:00.3]} 22... Ne6 {[%clk 0:01:20.4]} 23. b5 {[%clk 0:01:56.2]} 23...
Ncd4 {[%clk 0:01:20.5]} 24. Rc1 {[%clk 0:01:56.7]} 24... Kf8 {[%clk 0:01:17.9]}
25. a4 {[%clk 0:01:47]} 25... Bd7 {[%clk 0:01:15.2]} 26. Nf6 {[%clk 0:01:43.6]}
26... Ke7 {[%clk 0:01:14.1]} 27. Nd5+ {[%clk 0:01:40.3]} 27... Kd6 {[%clk
0:01:12.9]} 28. Nf6 {[%clk 0:01:39.7]} 28... a6 {[%clk 0:01:08.8]} 29. bxa6
{[%clk 0:01:36.2]} 29... bxa6 {[%clk 0:01:07.4]} 30. Nxh7 {[%clk 0:01:32.2]}
30... Bxa4 {[%clk 0:01:04.2]} 31. Nf6 {[%clk 0:01:31.8]} 31... Bb5 {[%clk
0:01:03.3]} 32. Ne4+ {[%clk 0:01:31.5]} 32... Ke7 {[%clk 0:01:01.9]} 33. Kf2
{[%clk 0:01:22.5]} 33... Bxf1 {[%clk 0:01:01.5]} 34. Rxf1 {[%clk 0:01:22.4]}
34... a5 {[%clk 0:01:01.7]} 35. Ra1 {[%clk 0:01:21.2]} 35... a4 {[%clk
0:01:01.7]} 36. g3 {[%clk 0:01:21.6]} 36... a3 {[%clk 0:01:01.8]} 37. f4 {[%clk
0:01:22.2]} 37... Nc2 {[%clk 0:00:47.9]} 38. Ra2 {[%clk 0:01:21.6]} 38... Nb4
{[%clk 0:00:47.9]} 39. Ra1 {[%clk 0:01:22]} 39... a2 {[%clk 0:00:46.9]} 40. Nc3
{[%clk 0:01:21.1]} 40... Nd4 {[%clk 0:00:47]} 41. Re1+ {[%clk 0:01:18.1]} 41...
Kf8 {[%clk 0:00:46.4]} 0-1

[Event "*** SCC Grand Prix: Titled Tuesday Blitz"]
[Site "Chess.com"]
[Date "2020.07.07"]
[Round "5"]
[White "carlesdc96"]
[Black "Makswolf200817"]
[Result "1-0"]
[WhiteElo "2706"]
[BlackElo "2507"]
[TimeControl "180+1"]
[EndTime "10:54:14 PDT"]
[Termination "carlesdc96 won by resignation"]

1. e4 {[%clk 0:03:00.9]} 1... e6 {[%clk 0:02:58.7]} 2. d4 {[%clk 0:02:59.5]}
2... d5 {[%clk 0:02:57.2]} 3. Nc3 {[%clk 0:02:58]} 3... Bb4 {[%clk 0:02:55.4]}
4. e5 {[%clk 0:02:57.8]} 4... c5 {[%clk 0:02:54.1]} 5. Bd2 {[%clk 0:02:58.3]}
5... Ne7 {[%clk 0:02:53]} 6. a3 {[%clk 0:02:58.7]} 6... Bxc3 {[%clk 0:02:49.6]}
7. Bxc3 {[%clk 0:02:59.6]} 7... O-O {[%clk 0:02:49]} 8. dxc5 {[%clk 0:02:59]}
8... Nec6 {[%clk 0:02:39.4]} 9. Nf3 {[%clk 0:02:58.7]} 9... Nd7 {[%clk
0:02:38.5]} 10. b4 {[%clk 0:02:54.5]} 10... a5 {[%clk 0:02:35.9]} 11. Bd3 {[%clk
0:02:48.8]} 11... h6 {[%clk 0:02:32.1]} 12. O-O {[%clk 0:02:46.7]} 12... Qc7
{[%clk 0:02:31.3]} 13. Re1 {[%clk 0:02:45.2]} 13... f6 {[%clk 0:02:15.7]} 14.
exf6 {[%clk 0:02:43.5]} 14... Nxf6 {[%clk 0:02:16.6]} 15. Ne5 {[%clk 0:02:35.3]}
15... d4 {[%clk 0:01:45.4]} 16. Nxc6 {[%clk 0:02:34.9]} 16... dxc3 {[%clk
0:01:45.5]} 17. Nxa5 {[%clk 0:02:30.4]} 17... Rxa5 {[%clk 0:01:43.5]} 18. bxa5
{[%clk 0:02:29.9]} 18... Qxc5 {[%clk 0:01:42.8]} 19. Qe2 {[%clk 0:02:29.1]}
19... Nd5 {[%clk 0:01:41.9]} 20. g3 {[%clk 0:02:19.2]} 20... Qxa5 {[%clk
0:01:39.9]} 21. Qe5 {[%clk 0:02:15.2]} 21... Qc5 {[%clk 0:01:36.6]} 22. Re2
{[%clk 0:02:14.7]} 22... Bd7 {[%clk 0:01:35.6]} 23. Qe4 {[%clk 0:02:06.7]} 23...
Nf6 {[%clk 0:01:33.5]} 24. Qb4 {[%clk 0:02:03.9]} 24... Qc6 {[%clk 0:01:30.1]}
25. Rb1 {[%clk 0:01:56.1]} 25... Qf3 {[%clk 0:01:22.7]} 26. Re3 {[%clk
0:01:51.6]} 26... Qd5 {[%clk 0:01:21.1]} 27. Qc4 {[%clk 0:01:44.3]} 27... Qa5
{[%clk 0:01:15.8]} 28. Rxb7 {[%clk 0:01:38.2]} 28... Bc8 {[%clk 0:01:15.6]} 29.
Rc7 {[%clk 0:01:35.4]} 29... Ba6 {[%clk 0:01:09.2]} 30. Qxa6 {[%clk 0:01:34.1]}
30... Qxc7 {[%clk 0:01:08.1]} 31. Qxe6+ {[%clk 0:01:30.5]} 31... Kh8 {[%clk
0:01:08.5]} 32. Qf5 {[%clk 0:01:26.9]} 32... Qa7 {[%clk 0:01:01.7]} 33. Re6
{[%clk 0:01:16.7]} 33... Kg8 {[%clk 0:00:55.5]} 34. Ra6 {[%clk 0:01:03.1]} 34...
Qe7 {[%clk 0:00:51.8]} 35. Qe6+ {[%clk 0:01:01.7]} 35... Qxe6 {[%clk 0:00:51.5]}
36. Rxe6 {[%clk 0:01:02.5]} 36... Ra8 {[%clk 0:00:52.1]} 37. Ra6 {[%clk
0:00:58.9]} 1-0

[Event "*** SCC Grand Prix: Titled Tuesday Blitz"]
[Site "Chess.com"]
[Date "2020.07.07"]
[Round "5"]
[White "JozefKneht"]
[Black "Alexsur1981"]
[Result "1-0"]
[WhiteElo "2468"]
[BlackElo "2600"]
[TimeControl "180+1"]
[EndTime "10:54:14 PDT"]
[Termination "JozefKneht won by resignation"]

1. e4 {[%clk 0:03:00.9]} 1... c5 {[%clk 0:02:55.7]} 2. Nf3 {[%clk 0:03:00.2]}
2... e6 {[%clk 0:02:55.2]} 3. d4 {[%clk 0:03:00.1]} 3... cxd4 {[%clk 0:02:56.1]}
4. Nxd4 {[%clk 0:03:00.4]} 4... Nf6 {[%clk 0:02:55.6]} 5. Nc3 {[%clk 0:03:00.2]}
5... Nc6 {[%clk 0:02:55.4]} 6. Ndb5 {[%clk 0:03:00.1]} 6... Bb4 {[%clk
0:02:53.3]} 7. Bf4 {[%clk 0:02:53.8]} 7... O-O {[%clk 0:02:48.1]} 8. Bd6 {[%clk
0:02:50.8]} 8... a6 {[%clk 0:02:41.3]} 9. Bxb4 {[%clk 0:02:38.4]} 9... Nxb4
{[%clk 0:02:42.2]} 10. Nd6 {[%clk 0:02:37.4]} 10... Qc7 {[%clk 0:02:37.2]} 11.
Qd2 {[%clk 0:02:18.8]} 11... b5 {[%clk 0:02:30.6]} 12. O-O-O {[%clk 0:02:11.7]}
12... Bb7 {[%clk 0:02:24.9]} 13. Kb1 {[%clk 0:02:09.3]} 13... Bc6 {[%clk
0:02:11.9]} 14. f3 {[%clk 0:02:02.4]} 14... Ne8 {[%clk 0:02:02]} 15. Be2 {[%clk
0:01:59.6]} 15... a5 {[%clk 0:01:52.9]} 16. Ncxb5 {[%clk 0:01:51.7]} 16... Qb8
{[%clk 0:01:52]} 17. a3 {[%clk 0:01:49.6]} 17... Nxd6 {[%clk 0:01:50.2]} 18.
Nxd6 {[%clk 0:01:38.4]} 18... Na6 {[%clk 0:01:48]} 19. Ka1 {[%clk 0:01:29.5]}
19... Nc7 {[%clk 0:01:44.5]} 20. Bc4 {[%clk 0:01:26.1]} 20... Qa7 {[%clk
0:01:38.6]} 21. Qd4 {[%clk 0:01:17.9]} 21... Qb8 {[%clk 0:01:36.4]} 22. h4
{[%clk 0:01:15.5]} 22... Nb5 {[%clk 0:01:32.2]} 23. Bxb5 {[%clk 0:01:12.9]}
23... Bxb5 {[%clk 0:01:33.1]} 24. h5 {[%clk 0:01:12.7]} 24... h6 {[%clk
0:01:31.9]} 25. Rd2 {[%clk 0:01:05.4]} 25... Bc6 {[%clk 0:01:31.1]} 26. g4
{[%clk 0:01:04.5]} 26... Qc7 {[%clk 0:01:30]} 27. g5 {[%clk 0:00:58.4]} 27...
hxg5 {[%clk 0:01:29]} 28. h6 {[%clk 0:00:58.7]} 28... f6 {[%clk 0:01:29.3]} 29.
hxg7 {[%clk 0:00:58.2]} 29... Kxg7 {[%clk 0:01:30.2]} 30. Rdh2 {[%clk
0:00:55.5]} 30... Rh8 {[%clk 0:01:20.7]} 31. Rxh8 {[%clk 0:00:54.4]} 31... Rxh8
{[%clk 0:01:21.5]} 32. Rxh8 {[%clk 0:00:54.3]} 32... Kxh8 {[%clk 0:01:22.4]} 33.
Qxf6+ {[%clk 0:00:54.4]} 33... Kh7 {[%clk 0:01:22.8]} 34. Ne8 {[%clk 0:00:46.2]}
34... Qf4 {[%clk 0:01:04]} 1-0